Cogmind - Beta 13 @@@ ROGUE MODE // 2024.04.03 @ 18:31:50 Player: SPRING Result: Destroyed by H-61 Shepherd with Heavy Assault Cannon Performance ------------- Evolutions (2) 1000 Regions Visited (5) 1000 Robots Destroyed (93) 465 Value Destroyed (2417) 2417 Prototype IDs (4) 80 Alien Tech Used (0) 0 Bonus (352) 352 TOTAL SCORE: 5314 Bonus ------- High Alert Combat Kills 52 Aligned with FarCom 300 Cogmind --------- Core Integrity 0/550 Matter 277/300 Energy 98/100 System Corruption 1% Temperature Cool (0) Movement Core (450) Ox8 Location -8/Materials Parts ------- > --- POWER (1) -------- (None) > --- PROPULSION (4) --- (None) > --- UTILITY (4) ------ Large Storage Unit Hacking Suite Hacking Suite System Shield > --- WEAPON (2) ------- Gauss Rifle Katana > --- INVENTORY (15) --- Light Nuclear Core VTOL Module Cesium-ion Thruster Medium Storage Unit Advanced Weight Redist. System Structural Scanner Machine Analyzer Experimental Sensor Array Improved Signal Interpreter Core Analyzer Improved Utility Shielding Hardened Medium Armor Plating System Shield Trap Reconfigurator Gauss Rifle Peak State ------------ > --- POWER ------------ Light Nuclear Core > --- PROPULSION ------- Light Treads Advanced Treads Improved Carbon-fiber Leg Improved Carbon-fiber Leg > --- UTILITY ---------- Large Storage Unit Hacking Suite Hacking Suite System Shield > --- WEAPON ----------- Gauss Rifle Katana > --- INVENTORY -------- Light Nuclear Core VTOL Module Cesium-ion Thruster Cryofiber Web Medium Storage Unit Advanced Weight Redist. System Structural Scanner Machine Analyzer Experimental Sensor Array Improved Signal Interpreter Improved Utility Shielding Hardened Medium Armor Plating System Shield Trap Reconfigurator Gauss Rifle [Rating: 37] Favorites ----------- Power Light Ion Engine Engine Light Ion Engine Power Core Light Nuclear Core Propulsion Light Treads Treads Light Treads Leg Improved Carbon-fiber Leg Utility Small Storage Unit Device Structural Scanner Storage Small Storage Unit Processor Salvage Targeting Computer Hackware Hacking Suite Weapon Light Assault Rifle Ballistic Gun Light Assault Rifle Launcher Rocket Launcher Special Weapon Mining Laser Slashing Weapon Katana Build | -11 -10 -10 -10 -9 -8 ------- Run | Yrd Mat Min Exi Min Mat Slots Evolved 4 | . . . . . 4 Power . | . . . . . . Propulsion 2 | . . . . . 2 Utility 2 | . . . . . 2 Weapon . | . . . . . . Parts Attached 82 | 7 18 8 2 5 42 Power 18 | 1 5 1 . 1 10 Engine 13 | 1 4 1 . 1 6 Core 5 | . 1 . . . 4 Reactor . | . . . . . . Propulsion 24 | 2 4 . . 2 16 Treads 22 | 2 4 . . 2 14 Leg 2 | . . . . . 2 Wheel . | . . . . . . Hover . | . . . . . . Flight . | . . . . . . Utility 17 | 2 4 . 2 1 8 Device 7 | 1 3 . 1 . 2 Storage 4 | 1 1 . 1 . 1 Processor 3 | . . . . 1 2 Hackware 3 | . . . . . 3 Protection . | . . . . . . Artifact . | . . . . . . Weapon 23 | 2 5 7 . 1 8 Energy Gun . | . . . . . . Energy Cannon . | . . . . . . Ballistic Gun 17 | 2 4 4 . 1 6 Ballistic Cannon . | . . . . . . Launcher 2 | . . 1 . . 1 Special Weapon 3 | . 1 2 . . . Impact Weapon . | . . . . . . Slashing Weapon 1 | . . . . . 1 Piercing Weapon . | . . . . . . Special Melee Weapon . | . . . . . . Unidentified Prototypes 1 | . . . 1 . . Parts Lost 21 | . 6 1 . 1 13 Power 4 | . 1 . . . 3 Propulsion 11 | . 2 . . 1 8 Utility 2 | . 2 . . . . Weapon 4 | . 1 1 . . 2 Highest Loss Streak 5 | . 4 1 . 1 5 To Critical Strikes . | . . . . . . Average Slot Usage (%) 96 | . 98 99 100 99 93 Engine 9 | . 13 14 14 14 3 Core 2 | . . . . . 4 Treads 29 | . 27 28 28 27 31 Device 7 | . 13 14 14 7 . Storage 11 | . 14 14 14 14 9 Processor 5 | . . . . 6 11 Hackware 5 | . . . . . 13 Ballistic Gun 18 | . 27 26 28 28 6 Launcher 1 | . . . . . 2 Slashing Weapon 3 | . . . . . 7 Naked Turns . | . . . . . . Heaviest Build 31 | 13 13 11 16 18 31 Greatest Support 82 | 40 40 40 40 40 82 Greatest Overweight (x) 1 | . . . . . 1 Average Overweight (x) . | . . . . . . Largest Inventory Capacity 15 | 8 8 8 10 10 15 Average Capacity 10 | 7 8 8 8 10 12 Most Carried 15 | 7 8 8 9 10 15 Average Carried 9 | 5 7 7 8 9 11 Final Capacity 15 | 8 8 8 10 10 15 Final Carried 15 | 6 8 8 9 10 15 Class Distribution -------------------- 80% | Scavenger-Mutant 17% | Mutant Dominant Class ---------------- Mutant | -10/Materials Scavenger-Mutant | -10/Mines Scavenger-Mutant | -10/Exiles Scavenger-Mutant | -9/Mines Scavenger-Mutant | -8/Materials Resources | -11 -10 -10 -10 -9 -8 ----------- Run | Yrd Mat Min Exi Min Mat Matter Collected 1675 | 340 380 128 30 75 722 Remotely 101 | 22 79 . . . . Salvage Created 3372 | 264 707 159 . 151 2091 Parts 226 | 30 54 14 . 10 118 Haulers Intercepted 4 | . 2 . . . 2 Recyclers Shooed 3 | . . 1 . 1 1 Parts Field Recycled . | . . . . . . Retrieved Matter . | . . . . . . Parts Self-Destructed . | . . . . . . Prevented . | . . . . . . Kills | -11 -10 -10 -10 -9 -8 ------- Run | Yrd Mat Min Exi Min Mat Combat Hostiles Destroyed 60 | . 14 10 . 1 35 Melee 21 | . 1 . . . 20 Guns 33 | . 13 7 . 1 12 AOE 6 | . . 3 . . 3 Classes Destroyed 13 | 3 5 . . 1 4 Worker 5 | 3 1 . . . 1 Builder 5 | . 5 . . . . Tunneler 7 | 6 . . . 1 . Hauler 4 | . 2 . . . 2 Recycler 4 | 1 . . . 1 2 Operator 3 | . . . . . 3 Watcher 5 | . 1 . . . 4 Swarmer 17 | . 3 8 . . 6 Grunt 31 | . 11 2 . . 18 Duelist 2 | . . . . . 2 Sentry 7 | . . . . 1 6 Specialist 2 | . . . . . 2 Hunter 1 | . . . . . 1 Best Kill Streak 5 | 2 5 4 . 1 4 Combat Bots Only 4 | . 4 4 . 1 4 Max Kills in Single Turn 3 | 1 2 3 . 1 3 Gunslinging . | . . . . . . Exploded 3 | . . 3 . . 2 Melee 1 | . 1 . . . 1 Uniques/NPCs Destroyed . | . . . . . . Combat | -11 -10 -10 -10 -9 -8 -------- Run | Yrd Mat Min Exi Min Mat Hostile Shots Fired 394 | . 106 38 . 16 234 Missed 93 | . 27 8 . 4 54 Damage Taken 4602 | . 1018 335 . 157 3092 Core 777 | . 140 39 . 13 585 Absorbed by Shields . | . . . . . . Regen/Repaired (Parts) 434 | . 157 . . . 277 Core Remaining (%) 61 | 100 . . . 23 . Volleys Fired 240 | 35 103 24 . 8 70 Largest 2 | 2 2 2 . 2 2 Hottest 120 | 40 120 100 . 43 43 Shots Fired 458 | 70 201 43 . 16 128 Gun 449 | 70 200 39 . 16 124 Cannon . | . . . . . . Launcher 5 | . . 1 . . 4 Special 4 | . 1 3 . . . Kinetic 449 | 70 200 39 . 16 124 Thermal 4 | . 1 3 . . . Explosive 5 | . . 1 . . 4 Electromagnetic . | . . . . . . Robot Hit Streak 12 | 6 11 7 . 9 12 Robot Miss Streak 5 | 2 5 3 . 1 5 Penetration Max . | . . . . . . Secondary Targets 3 | . 1 1 . . 1 Max Gunslinging Chain 1 | . 1 1 . . 1 Shots Hit Robots 369 | 44 129 25 . 14 157 Core Hits 166 | 19 52 15 . 8 72 Critical Kills . | . . . . . . Critical Parts Destroyed . | . . . . . . Critical Strikes 13 | . . . . . 13 Sever 13 | . . . . . 13 Melee Attacks 86 | . . . . . 86 Impact . | . . . . . . Slashing 86 | . . . . . 86 Piercing . | . . . . . . Sneak Attacks 10 | . . . . . 10 Combat Hostiles 5 | . . . . . 5 Follow-up Attacks . | . . . . . . Damage Inflicted 6085 | 381 1090 440 . 130 4044 Guns 2947 | 381 1073 212 . 127 1154 Cannons . | . . . . . . Explosions 614 | . . 208 . . 406 Melee 2484 | . . . . . 2484 Ramming 40 | . 17 20 . 3 . Kinetic 2947 | 381 1073 212 . 127 1154 Thermal 111 | . . 111 . . . Explosive 503 | . . 97 . . 406 Electromagnetic . | . . . . . . Impact . | . . . . . . Slashing 2484 | . . . . . 2484 Piercing . | . . . . . . Highest Corruption 1 | . 1 1 1 1 1 Average Corruption 1 | . 1 1 1 1 1 Corruption Purged . | . . . . . . Corruption Blocked . | . . . . . . Effects 38 | . 13 4 5 10 6 Message Errors 12 | . 4 2 1 2 3 Matter Fused 10 | . 4 1 2 2 1 Heat Flow Errors 5 | . 2 . 1 1 1 Energy Discharges 4 | . 3 . . 1 . Parts Fused 2 | . . 1 1 . . Data Loss (minor) 4 | . . . . 3 1 Alerts 1 | . . . . 1 . Overload Shots . | . . . . . . Overflow Damage 224 | . . 36 . . 188 Projectiles . | . . . . . . Explosions 75 | . . 36 . . 39 Melee 149 | . . . . . 149 Knockbacks 1 | . . 1 . . . Impact 1 | . . 1 . . . Kinetic . | . . . . . . Secondary . | . . . . . . Self-Inflicted Damage 81 | . . 43 . . 38 Shots 3 | . . 2 . . 1 Rammed 16 | . 6 9 . 1 . Targets Rammed 17 | . 7 9 . 1 . Kicked . | . . . . . . Crushed 1 | . 1 . . . . Highest Temperature 225 | . 225 40 137 111 161 Average Temperature 31 | . 35 14 72 27 24 Received Heat Transfer 1749 | . 426 90 . 45 1188 Siege Activations . | . . . . . . Robots Corrupted . | . . . . . . Combat Hostiles . | . . . . . . Parts Fried . | . . . . . . Impact Corruptions . | . . . . . . Robots Melted . | . . . . . . Combat Hostiles . | . . . . . . Parts Melted . | . . . . . . Heat Transferred 150 | . . 150 . . . Parts Sabotaged . | . . . . . . Parts Stolen . | . . . . . . Parts Stripped . | . . . . . . Power Chain Reactions . | . . . . . . Alert | -11 -10 -10 -10 -9 -8 ------- Run | Yrd Mat Min Exi Min Mat Peak Influence 483 | 50 144 268 . 35 483 Initial 32 | . 32 4 . . . Average 107 | 21 60 101 . 5 184 Maximum Alert Level 2 | . . 1 . . 2 Low Security (%) 80 | 100 100 92 . 100 56 Level 1 16 | . . 7 . . 36 Level 2 3 | . . . . . 7 Level 3 . | . . . . . . Level 4 . | . . . . . . Level 5 . | . . . . . . High Security . | . . . . . . Max Security . | . . . . . . Squads Dispatched 10 | . 2 . . . 8 Investigation 6 | . 2 . . . 4 Extermination . | . . . . . . Reinforcement 4 | . . . . . 4 Assault . | . . . . . . Garrison . | . . . . . . Intercept . | . . . . . . Searches Triggered . | . . . . . . Construction Impeded . | . . . . . . Haulers Reinforced . | . . . . . . Active Scanning Responses . | . . . . . . Cargo Convoy Interrupts . | . . . . . . Stealth | -11 -10 -10 -10 -9 -8 --------- Run | Yrd Mat Min Exi Min Mat Distress Signals 2 | . . . . . 2 Communications Jammed . | . . . . . . Distress Signals . | . . . . . . Times Spotted 93 | . 20 12 . 2 59 Peak Tracking Total 5 | . 5 3 . 2 5 Tactical Retreats 7 | . . 1 . . 6 Traps | -11 -10 -10 -10 -9 -8 ------- Run | Yrd Mat Min Exi Min Mat Traps Triggered 3 | . 2 . . . 1 Indirectly . | . . . . . . Trap Hack Attempts . | . . . . . . Triggered . | . . . . . . Disarmed 2 | . 2 . . . . Reprogrammed . | . . . . . . Reused 1 | . . . . . 1 Traps Reconfigurated 2 | . . . . . 2 Traps Extracted . | . . . . . . Installed . | . . . . . . Triggered 1 | . . . . . 1 Machines | -11 -10 -10 -10 -9 -8 ---------- Run | Yrd Mat Min Exi Min Mat Machines Disabled 7 | . . 2 . . 5 Max in Single Turn 3 | . . 2 . . 3 Garrison Access 1 | . . . . . 1 Machines Repaired . | . . . . . . Machines Dismantled . | . . . . . . Machines Sabotaged . | . . . . . . Overloaded Fab Kills . | . . . . . . Hacking | -11 -10 -10 -10 -9 -8 --------- Run | Yrd Mat Min Exi Min Mat Machines Accessed 22 | . 7 . 4 . 11 Terminals 12 | . 5 . . . 7 Fabricators . | . . . . . . Repair Stations 2 | . 1 . . . 1 Recycling Units 1 | . 1 . . . . Scanalyzers 2 | . . . . . 2 Garrison Access 1 | . . . . . 1 Total Hacks 102 | . 21 . 30 . 51 Successful 71 | . 12 . 30 . 29 Failed 31 | . 9 . . . 22 Catastrophic 11 | . 3 . . . 8 Database Lockouts . | . . . . . . Manual 36 | . 9 . 1 . 26 Terminals 47 | . 14 . . . 33 Fabricators . | . . . . . . Repair Stations 10 | . 6 . . . 4 Recycling Units 1 | . 1 . . . . Scanalyzers 13 | . . . . . 13 Garrison Access 1 | . . . . . 1 Terminal Hacks 51 | . 7 . 30 . 14 Record 33 | . 1 . 30 . 2 Part Schematic 2 | . 1 . . . 1 Prototype ID Bank 1 | . 1 . . . . Branch Access Points 1 | . . . . . 1 Terminal Index 3 | . 1 . . . 2 Scanalyzer Index 1 | . . . . . 1 Garrison Index 1 | . . . . . 1 Alert Level 4 | . 1 . . . 3 Unreport Threat 2 | . . . . . 2 Disarm Traps 1 | . 1 . . . . Maintenance Status 1 | . 1 . . . . Zone Layout 1 | . . . . . 1 Fabricator Hacks . | . . . . . . Repair Station Hacks 8 | . 4 . . . 4 Scan Component 4 | . 2 . . . 2 Repair 4 | . 2 . . . 2 Recycling Unit Hacks 1 | . 1 . . . . Report Inventory 1 | . 1 . . . . Scanalyzer 10 | . . . . . 10 Insert Component 4 | . . . . . 4 Analyze 6 | . . . . . 6 Garrison Access Hacks 1 | . . . . . 1 Seal Access 1 | . . . . . 1 Unauthorized Hacks . | . . . . . . Terminals . | . . . . . . Fabricators . | . . . . . . Repair Stations . | . . . . . . Recycling Units . | . . . . . . Scanalyzers . | . . . . . . Garrison Access . | . . . . . . Data Cores Recovered 1 | . . . . . 1 Used . | . . . . . . Hacking Detections 15 | . 6 . . . 9 Full Trace Events 7 | . 3 . . . 4 Feedback Events 1 | . 1 . . . . Corruption 1 | . 1 . . . . Feedback Blocked . | . . . . . . Robot Schematics Acquired . | . . . . . . Robots Built . | . . . . . . Authchips . | . . . . . . Time . | . . . . . . Total Robot Build Rating . | . . . . . . Part Schematics Acquired 5 | . 1 . . . 4 Parts Built . | . . . . . . Authchips . | . . . . . . Time . | . . . . . . Total Part Build Rating . | . . . . . . Parts Repaired 4 | . 2 . . . 2 Time 104 | . 52 . . . 52 Parts Recycled . | . . . . . . Recycled Matter . | . . . . . . Retrieved Matter . | . . . . . . Retrieved Components . | . . . . . . Parts Scanalyzed 4 | . . . . . 4 Part Schematics Acquired 3 | . . . . . 3 Parts Damaged . | . . . . . . Bothacking | -11 -10 -10 -10 -9 -8 ------------ Run | Yrd Mat Min Exi Min Mat Used RIF Installer . | . . . . . . Robots Hacked . | . . . . . . Non-combat . | . . . . . . Combat . | . . . . . . Robot Hacks Applied . | . . . . . . Relay Couplers Released . | . . . . . . Fabnet Peak Effective % . | . . . . . . Robots Rewired . | . . . . . . Allies Hacked . | . . . . . . Hacks Repelled . | . . . . . . Allies | -11 -10 -10 -10 -9 -8 -------- Run | Yrd Mat Min Exi Min Mat Total Allies . | . . . . . . Largest Group . | . . . . . . Highest-Rated Group . | . . . . . . Highest-Rated Ally . | . . . . . . Total Orders . | . . . . . . Ally Attacks . | . . . . . . Total Damage . | . . . . . . Kills . | . . . . . . Allies Corrupted . | . . . . . . Allies Melted . | . . . . . . Intel | -11 -10 -10 -10 -9 -8 ------- Run | Yrd Mat Min Exi Min Mat Robot Analysis Total . | . . . . . . Derelict Logs Recovered 3 | . . 2 . 1 . Drone Launches . | . . . . . . Drone Recoveries . | . . . . . . Exploration | -11 -10 -10 -10 -9 -8 ------------- Run | Yrd Mat Min Exi Min Mat Turns Passed 7992 | 332 1657 947 625 1277 3154 Spaces Moved 4029 | 142 782 517 388 749 1451 Core 2 | 2 . . . . . Treads 3972 | 140 782 517 388 749 1396 Legs 55 | . . . . . 55 Wheels . | . . . . . . Hover . | . . . . . . Flight . | . . . . . . Fastest Speed 50 | 50 160 160 160 160 120 Average Speed 159 | 158 160 160 160 160 158 Slowest Speed 190 | 160 160 160 160 160 190 Overloaded Moves . | . . . . . . Propulsion Burnouts . | . . . . . . Robots Hopped . | . . . . . . Cave-ins Triggered . | . . . . . . Exploration Rate (%) 66 | 7 73 95 61 88 75 Regions Visited 5 Branch Regions 3 Pre-discovered Areas 5 | . . 3 1 1 . Known Exits Taken . | . . . . . . Unknown Exits Taken 5 | 1 1 1 1 1 . Scrap Searched 4 | . . 2 . 2 . Spaces Dug 4 | . 1 3 . . . Terrain Destroyed 80 | . 1 22 . . 57 Melee . | . . . . . . Projectile 4 | . 1 3 . . . AOE 76 | . . 19 . . 57 Terrain Rammed . | . . . . . . Walls Destroyed . | . . . . . . Machines Disabled . | . . . . . . Actions | -11 -10 -10 -10 -9 -8 --------- Run | Yrd Mat Min Exi Min Mat Total 5075 | 190 1022 590 393 814 2066 Wait 502 | . 89 24 . 45 344 Move 4024 | 141 781 516 387 748 1451 Hop . | . . . . . . Pick Up 61 | 7 13 4 1 3 33 Fast Attach 22 | 6 4 . 1 1 10 Attach 18 | 1 5 1 . . 11 Detach 6 | . . . 1 . 5 Swap 42 | . 9 7 1 4 21 Drop 57 | . 11 5 2 4 35 Fire 240 | 35 103 24 . 8 70 Melee 86 | . . . . . 86 Ram . | . . . . . . Kick . | . . . . . . Crush 17 | . 7 9 . 1 . Escape Stasis . | . . . . . . Rewire . | . . . . . . Trap . | . . . . . . Miscellaneous . | . . . . . . Route ------- -11/Scrapyard -10/Materials (discovered 3 exits: [*Mat] / [*Min] / [*Sub]) -10/Mines (discovered 3 exits: [*Mat x2] / *Exi) -10/Exiles (discovered 2 exits: [*Min x2]) -9/Mines -8/Materials (discovered 3 exits: [*Fac x3]) History --------- Turn | Location | Event 45 | -11/Scrapyard | Discovered new exit (range 15) 333 | -11/Scrapyard | Entered Materials 340 | -10/Materials | Build established: Mutant 982 | -10/Materials | Lost 4 parts (1p2n1u) 1023 | -10/Materials | Discovered new exit (range 15) 1585 | -10/Materials | Repaired Lgt. Treads 1612 | -10/Materials | Repaired Lgt. Treads 1653 | -10/Materials | Core integrity fell below 50% 1807 | -10/Materials | Discovered new exit (range 4) 1882 | -10/Materials | Discovered new exit (range 10) 1921 | -10/Materials | Build established: Scavenger-Mutant 1990 | -10/Materials | Entered Mines 2033 | -10/Mines | Found a damaged Exp. Sensor Array with a note attached 2037 | -10/Mines | Found Prototype Device 2095 | -10/Mines | Discovered new exit (range 10) 2335 | -10/Mines | Discovered new exit (range 4) 2359 | -10/Mines | Received a Rocket Launcher from a helpful Derelict 2454 | -10/Mines | Learned location of Mines (-9) 2556 | -10/Mines | Learned location of Storage (-7) 2927 | -10/Mines | Deemed a non-threat by the Exiles lab entrance 2927 | -10/Mines | Discovered new exit (range 6) 2937 | -10/Mines | Entered Exiles 2960 | -10/Exiles | Discovered new exit (range 15) 2981 | -10/Exiles | Met 8R-AWN 3005 | -10/Exiles | Met EX-HEX 3049 | -10/Exiles | Met EX-BIN 3069 | -10/Exiles | Aligned with FarCom system 3070 | -10/Exiles | Given EX-Vault access code 3131 | -10/Exiles | Opened EX-Vault 3243 | -10/Exiles | Warned to stay clear of 0b10 Research branches 3326 | -10/Exiles | Found Prototype Device 3326 | -10/Exiles | Identified Trap Reconfigurator 3436 | -10/Exiles | Met EX-DEC 3438 | -10/Exiles | Learned location of Zion (-7) 3542 | -10/Exiles | Discovered new exit (range 14) 3562 | -10/Exiles | Left Exiles lab with Trap Reconfigurator 3562 | -10/Exiles | Entered Mines 3595 | -9/Mines | Met a Derelict bent on vengeance 4820 | -9/Mines | Discovered new exit (range 3) 4839 | -9/Mines | Entered Materials 4839 | -8/Materials | Evolved 4 slots: Propulsion x2, Utility x2 6451 | -8/Materials | Repaired Lgt. Treads 6479 | -8/Materials | Repaired Lgt. Treads 6520 | -8/Materials | Discovered new exit (range 12) 6566 | -8/Materials | Identified Exp. Sensor Array 7283 | -8/Materials | Discovered new exit (range 12) 7799 | -8/Materials | Core integrity fell below 50% 7957 | -8/Materials | Discovered new exit (range 4) 7991 | -8/Materials | Core integrity fell below 20% 7993 | -8/Materials | Destroyed by H-61 Shepherd with Heavy Assault Cannon Last Messages --------------- 07973_ Slug penetrates Wall. 07973_ Imp. Carbon-fiber Leg destroyed. 07973_ Knocked back. 07977_ Adv. Treads destroyed. 07977_ Neutrino Reactor explodes. 07977_ Lgt. Nuclear Core destroyed. 07983_ Penetrated by Slug. 07983_ Knocked back. 07983_ Slug penetrates H-61 Shepherd. 07984_ Acquired 2 matter. 07985_ H-61 Shepherd calls for reinforcements. 07985_ ALERT: Hostile activity reported, dispatching reinforcements to area. 07985_ Imp. Carbon-fiber Leg destroyed. 07986_ K-01 Serf collects debris. 07987_ H-61 Shepherd misfires. 07987_ Slug penetrates Wall. 07990_ K-01 Serf collects debris. 07991_ Slug penetrates H-61 Shepherd. 07993_ Destroyed Transmission Jammer. Map ----- +----------------------------------------------------+ | ????????????????????????# #### #??????# """# | | ????????????????????????# #??????# = + | | ????????????????????????# #??????# =# | | ????????????????????????# #??????######## | | ??????????????????????######+#######??????????#! | | ### ?????????????????# #?????????????#! | | ?????????????????# !!""" #?????????????#! | | ?????????????????????# %""""" #?????????????#! | | ??????????????????????# """"" #?????????????#! | | ??????????????????????# *""""" #?????????????##! | | ??????????????????????# """ #??????????????#### | | ??????????????????????# #?????????????????# | | ??????????????????????# #?????????????????# | | ?? #??????????????????# #?????????????????# | | #??????????????????##########????????????????? | | #??????????###############???????????????????? | | #??????????# # ????????????????????? | | #??????????#[ # ?????????????????????? | | #??????????# "" # ???????????????????????# | | #??????????# G" # #???????????????????????? | | #??????????# !"" # ##??????????????????????? | | ####??????????#/!% !%# ;#??????????????????????? | | #################+### ;#######????????????????? | | * * = H % #????????????????? | | !!![ g #????????????????? | | =![ ! k @ g #????????????????? | | ###+##################% ##; #????????????????? | | ## =%[ #?????????# % # #????????????????? | | ?# #?????????# # < #????????????????? | | ?# #?????????# #? #????????????????? | | ?# #?????????# % #??##????????????????? | | ?# "T" #?????????# ! #????????????????????? | | ?# #?????????# #????????????????????? | | ?########?????????# #????????????????????? | | ??????????????????# #????????????????????? | | ??????????????????######;####????????????????????? | | | | | | | | | | | | | | | | | | | | | | | | | | | | | +----------------------------------------------------+ Best States ------------- Heat Dissipation 31 Energy Generation 14 Energy Capacity 275 Matter Stores 300 Matter Capacity 300 Sight Range 16 Robot Scan Range 14 Terrain Scan Density 10 Evasion (%) 55 Targeting Accuracy 5 Recoil Reduction 4 Salvage Targeting 1 Offensive Hacking 20 Defensive Hacking 10 Item Schematics ----------------- Structural Scanner | -10/Materials | Hacked Hacking Suite | -8/Materials | Hacked Exp. Sensor Array | -8/Materials | Scanalyzed Hrd. Medium Armor Plating | -8/Materials | Scanalyzed Imp. Utility Shielding | -8/Materials | Scanalyzed Robot Schematics ------------------ None Fabricated ------------ Nothing Alien Tech Used ----------------- None Achievements -------------- None Challenges ------------ None Game ------ Seed MinesnifferAssemblyCasing Manual? 0 Play Time 01:17:51 Cumulative 17.9 hours Start 2024.04.03 @ 16:46:27 End 2024.04.03 @ 18:31:50 Sessions 1 Manual Loads 0 Difficulty Rogue Special Mode None Game No. 9 Rogue 9 Adventurer 0 Explorer 0 Win Type - Total 0 Types 0/0/0/0/0/0/0/0/0 Lore% 15 Gallery% 16 Achievement% 17 Wizard Run 0 Options --------- Layout 1 ASCII 0 Keyboard 1 Movement Numpad Keybinds 0 Fullscreen 2 Font 32/TamsynBold Map View 50x40 Zoom Use 0% Tactical HUD 1 Map Filters NONE Filters NONE Steam 1 RUN: d891961e-39af-4209-bd93-9d3be4bd3a42